bitfinex/quotes_ETHUSD_20250802
["timestamp","ask_amount","ask_price","bid_price","bid_amount"]
[1754096424946,0.83773572,3518.5,3518.3,0.002]
[1754096425160,4.632,3518.4,3518.3,0.002]
[1754096426965,15.942501,3518.4,3518.3,0.002]
[1754096427477,17.651501,3518.4,3518.3,0.002]
[1754096428983,16.019501,3518.4,3518.3,0.002]
[1754096429264,22.57405898,3518.4,3518.3,0.002]
[1754096429859,22.71645898,3518.4,3518.3,0.002]
[1754096431176,21.81815898,3518.4,3518.3,0.002]
[1754096431469,18.81815898,3518.4,3518.3,0.002]
[1754096431676,22.25275898,3518.4,3518.3,0.002]
[1754096431852,22.71645898,3518.4,3518.3,0.002]
[1754096432632,17.18715898,3518.4,3518.3,0.002]
[1754096432863,18.81715898,3518.4,3518.3,0.002]
[1754096435046,19.71545898,3518.4,3518.3,0.002]
[1754096435450,22.71545898,3518.4,3518.3,0.002]
[1754096437435,22.71545898,3518.4,3518.3,1e-08]
[1754096439152,23.00065898,3518.4,3518.3,1e-08]
[1754096439353,25.99765898,3518.4,3518.3,1e-08]
[1754096439563,26.14594921,3518.4,3518.3,1e-08]
[1754096439771,26.25988121,3518.4,3518.3,1e-08]
[1754096440861,26.25988121,3518.4,3516.8,0.002]
[1754096440862,3.39341323,3516.9,3516.8,0.002]
[1754096441056,3.53581323,3516.9,3516.8,0.002]
[1754096441259,3.53581323,3516.9,3516.8,0.9116]
[1754096441260,8.16381323,3516.9,3516.8,0.9116]
[1754096441470,8.29693381,3516.9,3516.8,0.002]
[1754096441674,3.53581323,3516.9,3516.8,0.9116]
[1754096441845,8.16381323,3516.9,3516.8,0.9116]
[1754096443263,8.372566,3516.9,3516.8,0.9116]
[1754096443481,9.49415367,3516.9,3516.8,0.002]
[1754096444776,4.72375367,3516.9,3516.8,0.4836]
[1754096444972,8.371566,3516.9,3516.8,0.9116]
[1754096445556,8.371566,3516.9,3516.8,0.002]
[1754096445806,8.371566,3516.9,3516.8,0.9116]
[1754096446095,8.229166,3516.9,3516.8,0.9116]
[1754096446255,8.371566,3516.9,3516.8,0.9116]
[1754096446654,8.88148807,3516.9,3516.8,0.9116]
[1754096446874,3.744566,3516.9,3516.8,0.9116]
[1754096447060,8.371566,3516.9,3516.8,0.9116]
[1754096447466,8.371566,3516.9,3516.8,0.002]
[1754096449604,12.269866,3516.9,3516.8,0.002]
[1754096449909,19.289866,3516.9,3516.8,0.002]
[1754096450204,20.6177215,3516.9,3516.8,0.002]
[1754096451619,15.7727215,3516.9,3516.8,0.002]
[1754096451913,16.2448215,3516.9,3516.8,0.002]
[1754096452709,15.3067215,3516.9,3516.8,0.002]
[1754096452907,15.3067215,3516.9,3516.5,0.002]
[1754096452908,8.1026558,3516.6,3516.5,1e-08]
[1754096453230,15.08886595,3516.6,3516.5,1e-08]
[1754096453784,16.02696595,3516.6,3516.5,1e-08]
[1754096455301,10.46286595,3516.6,3516.5,1e-08]
[1754096455530,15.08886595,3516.6,3516.5,1e-08]
[1754096455969,16.02696595,3516.6,3516.5,1e-08]
[1754096456175,15.08886595,3516.6,3516.5,1e-08]
[1754096456604,5.10281754,3516.4,3516.3,1e-08]
[1754096456825,15.32800876,3516.4,3516.3,1e-08]
[1754096457125,10.70300876,3516.4,3516.3,1e-08]
[1754096457585,15.32800876,3516.4,3516.3,1e-08]
[1754096457983,15.32800876,3516.4,3516.3,0.93570001]
[1754096458788,15.32800876,3516.4,3516.3,0.47160001]
[1754096459810,10.70300876,3516.4,3516.3,0.47160001]
[1754096460124,15.32800876,3516.4,3516.3,0.93570001]
[1754096461844,9.86381754,3516.4,3516.3,0.93570001]
[1754096462145,14.48781754,3516.4,3516.3,0.93570001]
[1754096462437,11.644,3516.4,3516.3,0.93570001]
[1754096462836,11.7864,3516.4,3516.3,0.93570001]
[1754096463553,12.3364,3516.4,3516.3,0.93570001]
[1754096464105,15.18021754,3516.4,3516.3,0.47160001]
[1754096464463,12.07072743,3516.4,3516.3,1e-08]
[1754096466253,15.07072743,3516.4,3516.3,1e-08]
[1754096468108,3.05218346,3516.9,3516.3,3.77953664]
[1754096468109,0.20875277,3516.9,3516.3,3.77953664]
[1754096468315,4.623,3516.8,3516.4,0.9357]
[1754096468568,4.623,3516.7,3516.5,0.9357]
[1754096468762,4.623,3516.7,3516.6,0.9357]
[1754096468966,4.623,3516.7,3516.6,3.7793558]
[1754096469210,4.623,3516.7,3516.6,0.9357]
[1754096469561,5.173,3516.7,3516.6,0.9357]
[1754096469762,3.0,3517.5,3516.8,2.84347706]
[1754096469964,4.622,3517.4,3516.9,0.9357]
[1754096470174,0.001,3518.3,3517.3,2.84302703]
[1754096470175,4.622,3517.6,3517.3,2.84302703]
[1754096470377,4.622,3517.6,3517.2,2.84315914]
[1754096470602,4.622,3517.6,3517.4,0.9357]
[1754096470802,4.622,3517.6,3517.5,0.9357]
[1754096471488,0.001,3518.3,3518.1,2.84237627]
[1754096471671,0.001,3518.3,3518.2,3.77806257]
[1754096472188,0.55,3517.9,3517.6,0.4716]
[1754096472399,2.84329023,3518.3,3517.2,0.4716]
[1754096472400,0.55,3517.7,3517.2,0.4716]
[1754096472566,0.55,3517.5,3517.3,0.4716]
[1754096472768,5.171,3517.4,3517.3,0.4716]
[1754096472967,5.171,3517.4,3517.2,0.4641]
[1754096472968,0.55,3517.3,3517.2,0.4641]
[1754096473200,0.55,3517.3,3513.2,6.64848645]
[1754096473499,0.55,3517.1,3516.8,2.84348747]
[1754096473698,5.17,3517.0,3516.9,0.4716]
[1754096473874,5.17,3517.0,3516.9,0.9357]
[1754096474077,5.17,3517.0,3516.9,0.4716]
[1754096474276,0.55,3516.9,3516.3,1e-08]
[1754096474484,0.55,3516.5,3516.3,1e-08]
[1754096474712,5.17,3516.4,3516.3,1e-08]
[1754096475076,8.01381754,3516.4,3516.3,1e-08]
[1754096475484,3.39381754,3516.4,3516.3,1e-08]
[1754096475698,8.73137736,3516.4,3516.3,1e-08]
[1754096476005,9.8018047,3516.4,3516.3,1e-08]
[1754096476213,12.8018047,3516.4,3516.3,1e-08]
[1754096476503,13.01881833,3516.4,3516.3,1e-08]
[1754096477507,7.46071833,3516.4,3516.3,1e-08]
[1754096477811,4.619,3516.4,3516.3,0.93570001]
[1754096478271,4.619,3516.4,3516.3,3.77959842]
[1754096478606,4.619,3516.4,3516.3,3.92199842]
[1754096478806,6.834,3517.5,3516.3,1.07810001]
[1754096479011,0.1424,3517.2,3517.0,2.84329946]
[1754096479171,4.619,3517.1,3517.0,0.4716]
[1754096479376,3.39335482,3517.0,3516.5,0.4716]
[1754096479570,0.55,3516.7,3516.3,1e-08]
[1754096479782,0.6924,3516.4,3516.3,1e-08]
[1754096480079,3.06187527,3517.3,3516.3,1e-08]
[1754096480080,4.619,3516.9,3516.3,0.14240001]
[1754096480280,4.619,3516.9,3516.8,2.84349408]
[1754096480502,2.84245296,3518.1,3517.2,2.84310245]
[1754096480710,4.619,3517.4,3517.3,3.77877631]
[1754096480928,0.2110396,3518.0,3517.4,1.0781]
[1754096480929,0.1424,3518.0,3517.4,1.0781]
[1754096481220,4.619,3518.0,3517.9,2.84260496]
[1754096481421,4.619,3518.0,3517.9,3.45660496]
[1754096481628,0.001,3518.3,3518.0,2.84248165]
[1754096481784,0.001,3518.3,3518.2,2.84236257]
[1754096481987,0.001,3518.3,3518.2,3.52352952]
[1754096482323,0.001,3518.3,3518.2,0.487]
[1754096482492,4.7614,3518.3,3517.9,0.469]
[1754096482694,4.619,3518.3,3518.1,2.84236592]
[1754096482922,4.619,3518.3,3517.8,0.1424]
[1754096482923,4.7614,3518.3,3518.2,0.956]
[1754096483456,0.1434,3518.3,3518.2,0.956]
[1754096483602,4.7614,3518.3,3518.2,0.956]
[1754096483807,4.7614,3518.3,3518.2,0.487]
[1754096484017,4.7614,3518.3,3517.8,1.0984]
[1754096484319,0.55,3518.1,3517.8,0.1424]
[1754096484618,0.6924,3517.9,3517.5,0.487]
[1754096485718,0.55,3517.9,3517.5,0.487]
[1754096485887,0.1424,3517.7,3517.5,0.487]
[1754096486083,0.1424,3517.7,3517.6,0.956]
[1754096486309,0.1424,3517.8,3517.6,0.956]
[1754096486482,3.60364417,3518.3,3517.6,0.956]
[1754096486483,4.618,3518.3,3517.7,0.956]
[1754096486817,4.618,3518.3,3516.7,3.0]
[1754096486818,0.55,3518.2,3517.2,0.469]
[1754096486986,0.1424,3517.8,3517.4,3.33000509]
[1754096487200,0.1424,3517.8,3517.5,0.956]
[1754096487539,4.7584,3517.8,3517.6,0.487]
[1754096487902,4.7584,3517.8,3517.7,0.487]
[1754096488805,0.55,3517.7,3517.3,0.1424]
[1754096489027,0.1424,3517.6,3517.1,0.487]
[1754096489226,0.1424,3517.6,3517.2,0.487]
[1754096489739,7.93454182,3517.8,3517.2,0.487]
[1754096489740,0.1424,3517.4,3517.2,0.487]
[1754096489946,4.7584,3517.4,3517.2,0.487]
[1754096490811,0.55,3517.3,3516.5,3.33073536]
[1754096491001,0.55,3517.1,3516.6,0.1424]
[1754096491348,3.39311937,3517.3,3516.7,0.487]
[1754096491349,0.1424,3517.0,3516.7,0.487]
[1754096491517,0.1424,3517.0,3516.6,3.31265552]
[1754096491720,0.1424,3517.0,3516.8,0.487]
[1754096493139,0.1424,3517.0,3516.6,2.84365529]
[1754096493337,0.1424,3517.0,3516.5,3.3660892]
[1754096493551,0.1424,3517.0,3516.6,0.487]
[1754096493709,4.7564,3517.0,3516.7,0.487]
[1754096494917,4.7564,3517.0,3516.8,0.487]
[1754096495216,4.7564,3517.0,3516.4,0.6294]
[1754096495429,0.55,3516.9,3516.4,0.487]
[1754096495624,0.55,3516.9,3516.3,2.8438801]
[1754096495625,0.1424,3516.8,3516.5,0.487]
[1754096495833,0.1424,3516.8,3516.4,0.469]
[1754096496037,0.1424,3516.8,3516.6,0.487]
[1754096497034,0.1424,3516.8,3516.7,0.487]
[1754096497566,0.55,3516.7,3516.3,1e-08]
[1754096497852,0.1424,3516.5,3516.3,1e-08]
[1754096499714,0.95729066,3516.5,3516.3,1e-08]
[1754096500337,0.1424,3516.5,3516.3,1e-08]
[1754096501127,4.613,3516.4,3516.3,1e-08]
[1754096504343,8.00681754,3516.4,3516.3,1e-08]
[1754096504546,8.93671754,3516.4,3516.3,1e-08]
[1754096507112,10.64571754,3516.4,3516.3,1e-08]
[1754096507340,15.00889515,3516.4,3516.3,1e-08]
[1754096507513,10.39589515,3516.4,3516.3,1e-08]
[1754096507840,15.00689515,3516.4,3516.3,1e-08]
[1754096517330,9.46599515,3516.4,3516.3,1e-08]
[1754096517530,13.52499515,3516.4,3516.3,1e-08]
[1754096517747,14.07499515,3516.4,3516.3,1e-08]
[1754096518949,14.07399515,3516.4,3516.3,1e-08]
[1754096519549,14.07399515,3516.4,3516.3,0.47950001]
[1754096519736,14.07399515,3516.4,3516.3,0.92240001]
[1754096520151,9.46599515,3516.4,3516.3,0.92240001]
[1754096520344,14.07399515,3516.4,3516.3,0.92240001]
[1754096520943,9.867,3516.4,3516.3,0.92240001]
[1754096521563,0.55,3516.4,3516.3,0.92240001]
[1754096521765,5.158,3516.4,3516.3,0.92240001]
[1754096521967,4.608,3516.4,3516.3,0.92240001]
[1754096522164,5.158,3516.4,3516.3,0.92240001]
[1754096522462,8.00181754,3516.4,3516.3,1e-08]
[1754096522663,0.55,3516.4,3516.3,0.92240001]
[1754096522866,5.157,3516.4,3516.3,0.92240001]
[1754096523165,8.00081754,3516.4,3516.3,1e-08]
[1754096523474,9.27040745,3516.4,3516.3,1e-08]
[1754096523673,4.66340745,3516.4,3516.3,1e-08]
[1754096523845,9.27040745,3516.4,3516.3,0.47950001]
[1754096524471,13.97940745,3516.4,3516.3,1e-08]
[1754096524662,14.44570745,3516.4,3516.3,1e-08]
[1754096526509,20.99940745,3516.4,3516.3,1e-08]
[1754096526712,21.93480745,3516.4,3516.3,1e-08]
[1754096526866,20.99940745,3516.4,3516.3,1e-08]
[1754096527683,21.00040745,3516.4,3516.3,1e-08]
[1754096527999,18.16221754,3516.4,3516.3,0.92240001]
[1754096529799,12.3184,3516.4,3516.3,0.92240001]
[1754096529986,12.3174,3516.4,3516.3,0.92240001]
[1754096531105,12.3174,3516.4,3516.3,1e-08]
[1754096531301,7.7134,3516.4,3516.3,1e-08]
[1754096531492,7.7134,3516.4,3516.3,0.92240001]
[1754096531493,12.3174,3516.4,3516.3,0.92240001]
[1754096532373,7.1634,3516.4,3516.3,0.92240001]
[1754096532574,0.001,3516.4,3516.3,4.14294324]
[1754096534392,0.001,3516.4,3516.3,3.76629842]
[1754096535977,0.001,3516.4,3516.3,1e-08]
[1754096536183,0.551,3516.4,3516.3,1e-08]
[1754096537522,7.571,3516.4,3516.3,1e-08]
[1754096538526,10.41481754,3516.4,3516.3,1e-08]
[1754096538813,7.571,3516.4,3516.3,1e-08]
[1754096539219,7.571,3516.4,3516.3,0.47950001]
[1754096540136,7.571,3516.4,3516.3,0.92240001]
[1754096540723,12.171,3516.4,3516.3,0.47950001]
[1754096541234,0.001,3516.4,3516.3,0.92240001]
[1754096541526,4.6,3516.4,3516.3,3.76629842]
[1754096541699,4.6,3516.4,3516.3,4.42733302]
[1754096541898,0.001,3516.4,3516.3,4.42733302]
[1754096542621,0.001,3516.4,3516.3,4.56973302]
[1754096552233,0.001,3516.8,3516.7,5.84357494]
[1754096552433,0.001,3516.8,3516.7,11.02293243]
[1754096552603,0.001,3516.8,3516.7,12.07963243]
[1754096554508,0.001,3516.8,3516.7,7.04263243]
[1754096554715,0.001,3516.8,3516.7,7.48463243]
[1754096555546,1e-08,3517.3,3517.2,5.8431707]
[1754096555727,1e-08,3517.3,3517.2,11.01948777]
[1754096555908,1e-08,3517.3,3517.2,11.93378777]
[1754096558302,0.001,3517.7,3517.6,2.84284739]
[1754096558573,0.001,3517.7,3517.6,10.46227586]
[1754096558740,0.001,3517.7,3517.6,12.77009995]
[1754096559918,0.001,3518.3,3518.2,2.84236257]
[1754096560255,0.001,3518.3,3518.2,10.46078619]
[1754096560553,0.001,3518.7,3518.6,2.84203944]
[1754096560843,0.001,3518.7,3518.6,7.43203944]
[1754096561051,0.001,3518.7,3518.6,8.5508876]
[1754096561235,0.001,3518.7,3518.6,9.0231876]
[1754096562458,0.001,3518.7,3518.6,12.4651876]
[1754096563303,0.001,3518.7,3518.6,6.9608876]
[1754096563507,0.001,3518.7,3518.6,2.84203944]
[1754096563944,0.001,3518.7,3518.6,7.43003944]
[1754096564247,0.001,3518.7,3518.6,8.34433944]
[1754096564756,0.001,3518.7,3518.6,10.90233944]
[1754096565411,0.001,3518.7,3518.6,11.48673944]
[1754096565610,0.001,3518.7,3518.6,12.9196276]
[1754096567463,0.1424,3519.5,3519.4,2.84139341]
[1754096567762,7.02,3519.9,3519.8,2.84107051]
[1754096568112,7.4484,3519.9,3519.8,2.84107051]
[1754096568825,7.02,3519.9,3519.8,2.84107051]
[1754096569358,7.02,3519.9,3519.8,3.88203481]
[1754096571433,0.9013,3520.3,3520.2,2.84074768]
[1754096571655,0.9013,3520.3,3520.2,7.42374768]
[1754096573866,0.4321,3520.6,3520.3,2.84066698]
[1754096574033,0.9294,3520.5,3520.3,2.84066698]
[1754096574364,0.55,3520.9,3520.4,2.84058483]
[1754096574670,0.55,3520.9,3520.2,7.423684]
[1754096574671,0.290246,3520.8,3520.2,7.423684]
[1754096574877,0.55,3520.6,3520.2,7.421684]
[1754096575232,0.9294,3520.5,3520.2,2.840684]
[1754096575427,0.55,3520.7,3520.2,2.840684]
[1754096575693,0.55,3520.3,3518.9,0.4869]
[1754096575962,7.02,3520.6,3519.4,2.84132804]
[1754096575963,0.55,3520.1,3519.4,2.84132804]
[1754096576361,0.55,3519.9,3519.4,2.84132804]
[1754096576549,0.9294,3519.8,3519.4,2.84132804]
[1754096576753,0.55,3520.0,3519.4,2.84132804]
[1754096576968,0.9294,3519.7,3519.4,2.84132804]
[1754096577137,0.9294,3519.6,3519.4,2.84132804]
[1754096577462,0.9294,3519.5,3519.1,2.84162198]
[1754096577772,0.9294,3519.4,3518.0,7.50904534]
[1754096578068,0.55,3519.7,3519.2,2.84150512]
[1754096578261,0.4321,3519.6,3519.3,2.84147415]
[1754096578629,0.9294,3519.6,3519.3,2.84147415]
[1754096578832,0.4321,3519.5,3519.1,4.579]
[1754096579068,0.4321,3519.5,3519.3,2.84145986]
[1754096579448,0.9294,3519.5,3519.2,2.84154269]
[1754096579636,0.6397,3519.5,3519.2,2.84154269]
[1754096579832,0.4321,3519.4,3519.2,2.84154269]
[1754096580375,0.6397,3519.5,3519.4,2.84139341]
[1754096580376,0.1424,3519.5,3519.4,2.84139341]
[1754096580586,0.1424,3519.6,3519.5,2.84124758]
[1754096580739,0.1424,3519.6,3519.4,2.8413863]
[1754096581933,0.1424,3519.6,3519.5,2.84131268]
[1754096582139,0.5745,3519.6,3519.5,2.84131268]
[1754096582352,0.1424,3519.6,3519.5,3.32821268]
[1754096582555,0.1424,3519.6,3519.4,2.84138264]
[1754096582765,0.9294,3519.5,3519.2,2.84149079]
[1754096583082,0.9294,3519.4,3519.2,2.84149079]
[1754096583238,0.1424,3519.6,3519.2,2.84149079]
[1754096583444,0.9294,3519.3,3519.2,2.84149079]
[1754096584381,0.9294,3519.3,3519.0,2.84164581]
[1754096584586,0.1424,3519.4,3519.0,2.84164581]
[1754096584744,0.1424,3519.6,3519.4,2.84136851]
[1754096586474,0.1424,3519.6,3519.5,2.84131268]
[1754096586668,0.1424,3519.6,3519.3,2.84146347]
[1754096586880,0.6397,3519.6,3519.1,0.1424]
[1754096587155,0.6397,3519.6,3519.5,2.84131268]
[1754096587156,0.1424,3519.6,3519.5,2.84131268]
[1754096587992,7.02,3520.1,3519.6,2.84120293]
[1754096588198,0.1424,3520.3,3520.1,2.84077236]
[1754096588502,0.1424,3520.5,3519.9,0.1424]
[1754096588707,0.6397,3520.5,3519.9,0.1424]
[1754096588908,0.6397,3520.5,3519.0,2.84171639]
[1754096588909,2.84080825,3520.2,3519.0,2.84171639]
[1754096589195,0.1424,3519.6,3519.3,2.84143537]
[1754096589397,0.55,3519.9,3519.3,3.32836608]
[1754096589689,0.1424,3519.8,3519.6,2.8412076]
[1754096589891,0.1424,3519.8,3519.7,3.32805123]
[1754096590204,0.1424,3520.6,3519.7,1.0601]
[1754096590363,0.1424,3520.6,3520.3,2.84063526]
[1754096590565,0.1424,3520.6,3520.4,2.84058129]
[1754096591494,0.001,3520.5,3520.4,2.84058129]
[1754096591990,0.001,3520.5,3520.3,2.84064607]
[1754096592187,0.001,3520.5,3520.4,2.84058629]
[1754096592562,0.001,3520.5,3520.4,3.32748629]
[1754096594387,0.001,3520.5,3520.4,3.75828629]
[1754096595010,0.001,3520.5,3520.4,5.03212904]
[1754096595305,0.001,3520.5,3520.4,9.60412904]
[1754096596130,0.001,3520.5,3520.4,5.03212904]
[1754096596294,0.001,3520.5,3520.4,9.17332904]
[1754096596459,0.001,3520.5,3520.4,4.60132904]
[1754096596660,0.001,3520.5,3520.4,9.17232904]
[1754096597290,0.001,3520.5,3520.4,2.98298629]
[1754096597472,0.001,3520.5,3520.4,3.90068629]
[1754096597886,0.001,3520.5,3520.4,3.32748629]
[1754096598292,0.001,3520.5,3520.4,3.75828629]
[1754096598680,0.001,3520.5,3520.4,3.32748629]
[1754096599188,0.001,3520.5,3520.4,3.98737433]
[1754096599409,0.001,3520.5,3520.4,4.41817433]
[1754096599694,0.001,3520.5,3520.1,0.4869]
[1754096599905,0.001,3520.5,3520.4,3.32748629]
[1754096600272,0.001,3520.5,3520.4,3.75828629]
[1754096602602,0.001,3520.5,3520.4,8.32728629]
[1754096602913,0.001,3520.5,3520.4,7.89648629]
[1754096603113,0.001,3520.5,3520.4,9.01588775]
[1754096603313,0.001,3520.5,3520.4,9.47268775]
[1754096603903,0.001,3520.5,3520.4,4.90368775]
[1754096604111,0.001,3520.5,3520.4,9.47168775]
[1754096605014,0.001,3520.5,3520.4,3.95998775]
[1754096605221,0.001,3520.5,3520.4,2.84058629]
[1754096606995,0.001,3520.5,3520.0,2.84084622]
[1754096607327,0.001,3520.5,3520.4,2.84058629]
[1754096607481,0.001,3520.5,3520.3,2.84065283]
[1754096607686,0.001,3520.5,3520.2,2.84073681]
[1754096609115,0.001,3520.5,3520.1,4.7094]
[1754096609312,0.001,3520.5,3520.1,0.1424]
[1754096609487,0.4351,3520.4,3520.2,2.840736]
[1754096609817,0.001,3520.5,3520.3,2.84065715]
[1754096610186,0.001,3520.5,3520.1,3.0]
[1754096610412,0.001,3520.5,3520.4,3.32268629]
[1754096611199,0.001,3520.5,3520.4,3.77948629]
[1754096611891,0.001,3520.5,3520.2,4.565]
[1754096612218,0.001,3520.5,3520.3,2.84066597]
[1754096612394,0.001,3520.5,3520.4,7.40558629]
[1754096612595,0.001,3520.5,3520.4,8.34448629]
[1754096613400,0.001,3520.5,3520.4,11.34448629]
[1754096614412,0.001,3520.5,3520.4,6.77948629]
[1754096614587,0.001,3520.5,3520.4,3.32268629]
[1754096614793,0.001,3520.5,3520.4,9.11239385]
[1754096615027,0.001,3520.5,3520.4,9.56919385]
[1754096615993,0.001,3520.5,3520.4,12.56919385]
[1754096616693,0.001,3520.5,3520.4,8.00519385]
[1754096616892,0.001,3520.5,3520.4,27.10148589]
[1754096619509,0.001,3520.5,3520.4,12.56719385]
[1754096620032,0.001,3520.5,3520.4,12.70959385]
[1754096620193,0.001,3520.5,3520.4,8.14759385]
[1754096620393,0.001,3520.5,3520.4,12.70959385]
[1754096620623,0.001,3520.9,3520.8,2.84026357]
[1754096620940,0.001,3520.9,3520.8,22.50261847]
[1754096621242,0.001,3520.9,3520.8,23.58391847]
[1754096621542,0.001,3520.9,3520.8,8.11172643]
[1754096622516,0.001,3520.9,3520.8,8.11072643]
[1754096623298,0.001,3520.9,3520.8,8.59282643]
[1754096623529,0.001,3520.9,3520.8,4.03282643]
[1754096623841,0.001,3520.9,3520.8,8.11072643]
[1754096624043,0.001,3520.9,3520.8,3.55072643]
[1754096624245,0.4361,3520.9,3520.8,7.40026357]
[1754096624801,0.001,3520.9,3520.8,7.40026357]
[1754096625026,0.001,3520.9,3520.8,2.84026357]
[1754096625226,0.001,3520.9,3520.8,7.39926357]
[1754096625847,0.001,3520.9,3520.8,2.84026357]
[1754096626346,0.001,3520.9,3520.8,3.32236357]
[1754096626935,0.001,3520.9,3520.8,3.77916357]
[1754096627639,0.001,3520.9,3520.8,3.32236357]
[1754096627952,0.001,3520.9,3520.8,22.41465561]
[1754096628117,0.001,3520.9,3520.8,23.01385561]
[1754096628445,0.001,3520.9,3520.8,25.59928316]
[1754096629852,0.001,3520.9,3520.8,2.98266357]
[1754096630063,0.001,3520.9,3520.8,7.54066357]
[1754096631122,0.001,3520.9,3520.8,22.07395561]
[1754096631430,0.001,3520.9,3520.8,23.00175561]
[1754096631827,0.001,3520.9,3520.8,2.98266357]
[1754096632257,0.001,3520.9,3520.8,7.53966357]
[1754096632428,0.001,3520.9,3520.8,23.61037395]
[1754096632825,0.001,3520.9,3520.8,26.16467395]
[1754096633030,0.004,3521.4,3521.3,2.83986027]
[1754096633256,0.004,3521.4,3521.3,7.39686027]
[1754096633429,0.004,3521.4,3521.3,10.55525453]
[1754096634174,0.004,3521.5,3521.4,5.83977963]
[1754096634470,0.004,3521.5,3521.4,11.30457963]
[1754096634628,1e-08,3521.5,3521.4,11.44617963]
[1754096635229,0.1416,3522.8,3522.6,2.83881224]
[1754096635469,1.3461268,3523.0,3522.6,7.39481224]
[1754096635470,1.4877268,3523.0,3522.6,7.39481224]
[1754096635666,1.3461268,3523.0,3522.6,7.53641224]
[1754096635831,1.3461268,3523.0,3522.6,2.98041224]
[1754096636338,0.1416,3522.9,3522.6,7.39481224]
[1754096636661,1.0777,3522.9,3522.6,7.39481224]
[1754096637481,1.0777,3522.9,3522.6,7.39381224]
[1754096637781,0.1416,3522.9,3522.6,7.39381224]
[1754096638542,0.1416,3522.9,3522.6,7.85691224]
[1754096638745,0.1416,3522.9,3522.6,8.30261224]
[1754096639174,0.1416,3522.9,3522.6,2.83881224]
[1754096639493,0.6015,3522.9,3522.6,7.39381224]
[1754096639646,0.4639,3522.7,3522.6,2.83881224]
[1754096639981,0.9401,3522.7,3522.6,4.554]
[1754096640141,0.004,3522.7,3522.6,7.39281224]
[1754096640545,0.004,3522.7,3522.6,8.44321224]
[1754096640775,0.004,3522.7,3522.6,9.6689198]
[1754096641343,0.004,3522.7,3522.6,5.1149198]
[1754096641546,0.004,3522.7,3522.6,9.6689198]
[1754096641784,0.004,3522.7,3522.6,5.1149198]
[1754096642364,0.004,3522.7,3522.6,8.7601198]
[1754096642681,0.004,3522.7,3522.6,9.6689198]
[1754096643057,0.004,3522.7,3522.6,9.5273198]
[1754096643780,0.004,3522.7,3522.6,4.9733198]
[1754096643953,0.004,3522.7,3522.6,9.5263198]
[1754096644154,1e-08,3522.7,3522.6,12.5263198]
[1754096644350,1e-08,3522.7,3522.6,7.9733198]
[1754096644566,1e-08,3522.7,3522.6,7.39181224]
[1754096645185,1e-08,3522.7,3522.6,8.30061224]
[1754096645377,1e-08,3522.7,3522.6,3.74761224]
[1754096645578,1e-08,3522.7,3522.6,8.32900036]
[1754096645777,1e-08,3522.7,3522.6,8.30061224]
[1754096646495,1e-08,3522.7,3522.6,2.83881224]
[1754096646656,1e-08,3522.7,3522.6,7.39081224]
[1754096647453,1e-08,3522.7,3522.6,2.83881224]
[1754096647792,1e-08,3522.7,3522.6,7.39081224]
[1754096648591,1e-08,3522.7,3522.6,2.83881224]
[1754096648795,1e-08,3522.7,3522.6,7.39081224]
[1754096650265,1e-08,3522.7,3522.6,7.38981224]
[1754096650454,1e-08,3522.7,3522.6,8.87579045]
[1754096650663,1e-08,3522.7,3522.6,9.32149045]
[1754096652578,1e-08,3522.7,3522.6,12.32149045]
[1754096653094,1e-08,3522.7,3522.6,12.46209045]
[1754096655059,1e-08,3522.7,3522.6,7.46639045]
[1754096655254,1e-08,3522.7,3522.6,12.46209045]
[1754096655660,0.00100001,3522.7,3522.6,12.46209045]
[1754096656290,0.00100001,3522.7,3522.6,12.46109045]
[1754096656696,1e-08,3522.7,3522.6,12.46109045]
[1754096657396,1e-08,3522.7,3522.6,12.01539045]
[1754096657567,1e-08,3522.7,3522.6,12.46109045]
[1754096659616,1e-08,3522.7,3522.6,12.46009045]
[1754096660078,1e-08,3522.7,3522.6,7.91209045]
[1754096660391,1e-08,3522.7,3522.6,12.46009045]
[1754096660908,0.4599,3523.8,3522.7,3.0]
[1754096661106,0.4599,3523.8,3523.7,2.83792604]
[1754096661265,0.1416,3524.2,3523.7,2.83792604]
[1754096661464,0.20919654,3524.7,3523.7,2.83792604]
[1754096661465,0.4643,3524.7,3523.8,4.548]
[1754096661695,2.83705395,3524.8,3523.8,7.3857689]
[1754096661890,0.9631,3524.6,3524.0,2.83768235]
[1754096662065,0.55,3524.9,3524.0,2.83768235]
[1754096662259,0.60334695,3528.5,3523.8,7.38584249]
[1754096662260,0.9631,3524.5,3523.8,4.548]
[1754096662474,0.9631,3524.4,3523.6,2.83792716]
[1754096662707,0.9631,3524.3,3523.7,4.548]
[1754096662905,0.9631,3524.3,3524.2,2.8375234]
[1754096663587,0.9631,3524.3,3523.0,3.0]
[1754096663790,0.9631,3524.2,3523.6,2.83799703]
[1754096663997,0.9631,3524.1,3523.6,2.83799703]
[1754096664302,0.9631,3524.0,3523.5,7.38505443]
[1754096664504,0.9631,3523.9,3523.7,2.83784614]
[1754096664664,0.55,3525.3,3523.1,4.547]
[1754096664864,0.9631,3523.8,3523.6,2.83797507]
[1754096665059,0.9631,3523.7,3523.6,2.83797507]
[1754096665760,0.9631,3523.7,3522.9,4.547]
[1754096665991,0.9631,3523.6,3523.1,2.83838721]
[1754096666268,0.9631,3523.5,3522.9,4.547]
[1754096666576,14.51768735,3524.5,3522.9,4.547]
[1754096666577,0.9631,3523.4,3523.1,2.83834725]
[1754096666977,2.83775744,3524.0,3523.1,2.83834725]
[1754096667181,0.9631,3523.3,3522.7,4.547]